bitfinex/quotes_ETHUSD_20230118
["timestamp","ask_amount","ask_price","bid_price","bid_amount"]
[1674059173968,15.23813995,1522.1,1521.4,6.63854]
[1674059174233,15.23813995,1522.1,1521.5,1.0]
[1674059174440,15.23813995,1522.1,1521.4,0.066]
[1674059174654,15.23813995,1522.1,1521.4,9.57269]
[1674059174810,2.09801995,1522.1,1521.4,9.63869]
[1674059175016,15.17210995,1522.1,1521.4,0.066]
[1674059175227,1.0,1522.0,1521.3,0.066]
[1674059175492,6.57083,1521.9,1521.2,6.63954]
[1674059175648,0.60324,1521.3,1521.2,6.63954]
[1674059175858,1e-08,1521.3,1521.2,0.066]
[1674059176106,1.156,1522.0,1521.3,1.00199999]
[1674059176391,7.72635,1522.0,1521.3,6.57501999]
[1674059176637,14.3627,1522.0,1521.3,0.06799999]
[1674059176825,6.5712,1521.8,1521.3,0.00199999]
[1674059177028,0.493,1521.7,1521.3,0.00199999]
[1674059177276,1.0,1521.7,1521.3,0.00199999]
[1674059177433,14.1434,1521.7,1521.0,0.066]
[1674059177648,3.944,1521.6,1520.9,0.15990556]
[1674059177970,1.0,1521.4,1520.9,0.15990556]
[1674059178277,8.06628,1521.4,1520.9,0.15990556]
[1674059178615,14.70546,1521.4,1520.9,0.15990556]
[1674059178960,14.21236,1521.4,1520.9,0.15990556]
[1674059179380,6.57384,1521.2,1520.9,0.15990556]
[1674059179536,6.63984,1521.2,1520.9,0.15990556]
[1674059179742,13.21368,1521.2,1520.9,0.15990556]
[1674059180271,0.066,1521.2,1520.9,0.15990556]
[1674059180488,6.63952,1521.3,1520.9,0.15990556]
[1674059180901,0.066,1521.3,1520.9,6.73492556]
[1674059181293,0.066,1521.4,1521.0,6.57453]
[1674059181464,0.066,1521.4,1521.1,3.0]
[1674059181465,0.014,1521.4,1521.1,3.0]
[1674059181705,6.57073,1521.9,1521.2,13.1475]
[1674059181855,6.63673,1521.9,1521.2,16.7135]
[1674059182276,6.63673,1521.9,1521.3,1.0]
[1674059182708,6.63673,1521.9,1521.3,6.57322]
[1674059182955,6.63673,1521.9,1521.4,1.0]
[1674059183148,0.066,1521.9,1521.4,7.57253]
[1674059183359,6.5704,1522.0,1521.4,6.63853]
[1674059183535,6.57086,1521.9,1521.4,0.066]
[1674059183737,7.12976,1521.9,1521.2,6.63966]
[1674059184111,13.70062,1521.9,1521.2,6.63966]
[1674059184327,0.066,1521.9,1521.2,16.71341]
[1674059184634,0.066,1522.0,1521.5,13.14482]
[1674059184792,2.03201995,1522.1,1521.5,16.71082]
[1674059185052,2.03201995,1522.1,1521.5,13.21082]
[1674059185420,2.03201995,1522.1,1521.5,16.71082]
[1674059185688,2.03201995,1522.1,1521.6,3.0]
[1674059186089,2.03201995,1522.1,1521.7,14.14297]
[1674059186308,2.03201995,1522.1,1521.9,19.71219]
[1674059186488,2.03201995,1522.1,1521.9,26.34892]
[1674059186696,2.03201995,1522.1,1522.0,16.1406]
[1674059186893,2.03201995,1522.1,1522.0,13.2066]
[1674059187137,2.03201995,1522.1,1522.0,16.2066]
[1674059187348,2.03201995,1522.1,1522.0,17.2066]
[1674059187561,0.05407282,1522.4,1522.0,16.2066]
[1674059187739,0.05407282,1522.4,1522.1,10.56952]
[1674059187953,0.05407282,1522.4,1522.1,6.63552]
[1674059188426,7.282e-05,1522.4,1522.1,13.20539]
[1674059188810,7.282e-05,1522.4,1522.2,1.0]
[1674059189021,7.282e-05,1522.4,1522.2,14.13846]
[1674059189226,7.282e-05,1522.4,1522.2,7.63503]
[1674059189652,7.282e-05,1522.4,1522.2,14.20446]
[1674059189948,7.282e-05,1522.4,1522.2,17.70446]
[1674059190159,7.282e-05,1522.4,1522.3,17.138]
[1674059190410,7.282e-05,1522.4,1522.3,17.204]
[1674059190615,7.282e-05,1522.4,1522.3,25.204]
[1674059191631,7.282e-05,1522.4,1522.3,25.18625615]
[1674059191882,0.05949953,1522.7,1522.5,19.70442]
[1674059192108,0.05949953,1522.7,1522.5,6.63414]
[1674059192265,0.05949953,1522.7,1522.5,0.066]
[1674059192477,0.05949953,1522.7,1522.4,0.00192718]
[1674059193047,0.69624126,1522.7,1522.4,0.00192718]
[1674059193266,0.4927,1522.6,1522.4,0.00192718]
[1674059193417,7.06048,1522.6,1522.4,0.00192718]
[1674059193624,13.20156,1522.6,1522.4,0.00192718]
[1674059194040,0.066,1522.6,1522.4,0.00192718]
[1674059194254,0.05949953,1522.7,1522.4,0.00192718]
[1674059194720,0.05949953,1522.7,1522.6,19.70313]
[1674059194891,0.05949953,1522.7,1522.6,13.20142]
[1674059195253,0.0045984,1523.1,1522.6,23.76913]
[1674059195465,0.0045984,1523.1,1522.7,4.0]
[1674059195701,0.0045984,1523.1,1522.8,13.13352]
[1674059195871,0.0045984,1523.1,1522.8,13.19952]
[1674059196198,0.0045984,1523.1,1522.9,4.0]
[1674059196416,0.0045984,1523.1,1523.0,13.13196]
[1674059196564,0.0045984,1523.1,1523.0,16.19796]
[1674059197244,0.0045984,1523.1,1523.0,17.19796]
[1674059197456,1e-08,1523.1,1523.0,17.19796]
[1674059197664,0.05731103,1523.2,1523.0,17.19796]
[1674059197665,0.05731103,1523.2,1523.0,20.69796]
[1674059197827,0.05731103,1523.2,1523.1,24.1351]
[1674059197828,1.03e-06,1523.2,1523.1,24.1351]
[1674059198040,1.16414873,1523.5,1523.1,24.2011]
[1674059198295,1.16414873,1523.5,1523.4,19.69278]
[1674059198467,1.16414873,1523.5,1523.4,19.75878]
[1674059198676,1.16414873,1523.5,1523.4,22.75878]
[1674059198878,1.16414873,1523.5,1523.4,25.20598997]
[1674059198879,8.73e-06,1523.5,1523.4,25.20598997]
[1674059199565,8.73e-06,1523.5,1523.4,26.20598997]
[1674059199930,0.0046362,1524.3,1523.4,26.20598997]
[1674059200164,0.0046362,1524.3,1523.7,8.0]
[1674059200378,0.0046362,1524.3,1523.8,19.68657]
[1674059200641,0.0046362,1524.3,1524.0,6.56165]
[1674059200811,0.0046362,1524.3,1524.0,0.066]
[1674059201017,0.0046362,1524.3,1523.9,13.19018]
[1674059201382,0.0046362,1524.3,1524.0,3.0]
[1674059201595,0.0046362,1524.3,1524.2,8.0]
[1674059201810,1.106596,1525.0,1524.2,22.74843]
[1674059202125,1.106596,1525.0,1524.5,13.11896]
[1674059202126,1.0,1524.6,1524.5,13.11896]
[1674059202273,1.0,1524.6,1524.5,13.185]
[1674059202473,1.0,1524.6,1524.5,16.185]
[1674059203385,1.0,1524.6,1524.5,17.80974416]
[1674059203532,1.0,1524.6,1524.5,0.066]
[1674059203735,1.0,1524.6,1524.4,6.55978]
[1674059203736,1.0,1524.6,1524.4,0.066]
[1674059203953,1.24,1524.9,1524.3,1.066]
[1674059204215,1.24,1524.9,1524.3,1.0]
[1674059204216,14.35562,1524.9,1524.3,1.0]
[1674059204367,0.492,1524.8,1524.0,1.126]
[1674059204580,13.11852,1524.6,1524.0,1.0]
[1674059204805,13.17662,1524.6,1524.0,1.0]
[1674059205111,0.4921,1524.5,1524.0,1.0]
[1674059205322,21.01429173,1524.6,1524.0,1.0]
[1674059205323,6.56007,1524.4,1524.0,1.0]
[1674059205559,0.066,1524.4,1524.0,1.0]
[1674059205752,6.55954,1524.5,1524.0,1.0]
[1674059205965,0.066,1524.5,1524.0,7.56162]
[1674059206208,7.79857,1524.8,1524.0,6.62762]
[1674059206209,0.066,1524.8,1524.0,6.62762]
[1674059206419,1.0,1524.8,1524.2,8.0]
[1674059206614,1.0,1524.8,1524.3,22.68012]
[1674059206790,1.0,1524.8,1524.3,22.74612]
[1674059207002,1.0,1524.8,1524.3,9.62604]
[1674059207212,1.0,1524.8,1524.3,0.066]
[1674059207463,1.0,1524.8,1524.2,3.0]
[1674059207464,1.0,1524.5,1524.2,3.0]
[1674059207718,1.0,1524.5,1524.1,0.066]
[1674059207855,7.86526,1524.8,1524.0,6.62749]
[1674059208063,7.86526,1524.8,1524.0,0.066]
[1674059208307,7.86526,1524.8,1523.7,1.066]
[1674059208308,1.12874173,1524.7,1523.7,1.066]
[1674059208632,6.55942,1524.6,1523.8,1.0]
[1674059208946,6.62542,1524.6,1523.8,1.0]
[1674059209163,0.066,1524.6,1523.9,13.12392]
[1674059209325,1.239,1524.9,1523.9,13.18992]
[1674059209326,1.7309,1524.9,1523.9,13.18992]
[1674059209519,1.7309,1524.9,1524.4,1.0]
[1674059209520,8.2887,1524.9,1524.4,1.0]
[1674059209888,14.42066,1524.9,1524.4,1.0]
[1674059210047,0.066,1524.9,1524.4,1.0]
[1674059210259,6.55781,1524.9,1524.4,1.0]
[1674059210473,6.62381,1524.9,1524.4,1.0]
[1674059210673,1.0,1524.7,1524.4,1.0]
[1674059210889,0.9,1524.7,1524.4,1.0]
[1674059211624,14.221826,1525.0,1524.4,1.0]
[1674059211844,14.287826,1525.0,1524.4,1.0]
[1674059212084,16.328726,1525.0,1524.4,1.0]
[1674059212297,16.96546773,1525.0,1524.4,1.0]
[1674059212515,1.0,1524.8,1524.1,0.06]
[1674059212742,1.0,1524.8,1524.0,13.12626475]
[1674059212743,1.0,1524.8,1524.0,6.62752]
[1674059212883,7.55823,1524.8,1524.0,6.62752]
[1674059213098,14.18247,1524.8,1524.0,6.62752]
[1674059213305,14.18247,1524.8,1524.0,0.066]
[1674059213671,14.18247,1524.8,1524.0,6.56143]
[1674059213672,7.11623,1524.8,1524.0,6.56143]
[1674059213831,2.17374173,1524.7,1524.0,0.066]
[1674059214042,21.22771,1524.5,1523.9,1.0]
[1674059214369,21.22771,1524.5,1523.6,0.06]
[1674059214370,13.12378,1524.0,1523.6,0.06]
[1674059214578,1.549,1523.8,1523.1,0.078]
[1674059214795,0.00599999,1523.5,1523.2,0.07575]
[1674059215441,6.56988999,1523.5,1523.2,0.07575]
[1674059215659,13.69217999,1523.5,1523.2,0.07575]
[1674059216262,1.548,1523.3,1523.2,0.07575]
[1674059216726,14.67738,1523.3,1523.2,0.07575]
[1674059217036,15.23578,1523.3,1523.2,0.07575]
[1674059217193,15.23578,1523.3,1522.4,3.50192718]
[1674059217404,1.549,1523.0,1522.4,0.00192718]
[1674059217615,1.548,1522.8,1522.4,0.00192718]
[1674059217861,6.56736,1522.7,1522.4,0.00192718]
[1674059218072,6.63336,1522.7,1522.4,0.00192718]
[1674059218407,0.02286,1522.6,1522.4,0.00192718]
[1674059219134,0.02286,1522.6,1522.4,0.15198241]
[1674059219296,0.02286,1522.6,1522.5,1.0]
[1674059219970,1.0,1523.2,1522.5,4.0]
[1674059220245,1.0,1523.2,1522.5,25.62883]
[1674059220455,1.0,1523.2,1522.5,29.52387915]
[1674059220785,1.0,1523.2,1522.5,26.02387915]
[1674059221005,1.0,1523.2,1522.5,29.52387915]
[1674059221197,1.0,1523.2,1522.5,28.19483]
[1674059221411,1.0,1523.0,1522.5,24.69483]
[1674059221623,1.0,1523.0,1522.5,16.20213]
[1674059221835,1.0,1523.2,1522.5,0.066]
[1674059221836,7.56515,1523.2,1522.5,0.066]
[1674059222050,1.604,1523.2,1522.4,14.78641241]
[1674059222287,6.63071,1523.3,1522.4,14.78641241]
[1674059222504,0.06343,1523.2,1522.4,14.78641241]
[1674059222670,6.62869,1523.2,1522.4,15.27911241]
[1674059222886,6.69469,1523.2,1522.6,1.0]
[1674059223092,1.549,1522.9,1522.6,1.0]
[1674059223300,0.06351,1522.8,1522.6,1.0]
[1674059223721,6.63052,1522.8,1522.6,1.0]
[1674059223929,6.69652,1522.8,1522.4,0.15198241]
[1674059224190,13.26353,1522.8,1522.4,0.15198241]
[1674059224764,13.75613,1522.8,1522.5,1.0]
[1674059224971,13.75613,1522.8,1522.4,0.15198241]
[1674059225409,13.26353,1522.8,1522.4,0.15198241]
[1674059225809,14.75613,1522.8,1522.4,0.15198241]
[1674059226184,14.26353,1522.8,1522.4,0.15198241]
[1674059226336,0.12951,1522.8,1522.4,0.15198241]
[1674059226572,13.68997,1522.8,1522.4,0.15198241]
[1674059226917,6.56814,1522.5,1522.4,0.15198241]
[1674059227127,13.75857,1522.5,1522.4,0.15198241]
[1674059227278,13.75857,1522.5,1522.0,1.0]
[1674059227490,1.548,1522.1,1522.0,1.0]
[1674059227750,14.75143,1522.1,1521.9,1.0]
[1674059228028,1.17372,1522.0,1521.9,1.0]
[1674059228237,1.66662,1522.0,1521.7,1.0092346]
[1674059228487,13.69785,1521.9,1521.7,0.0092346]
[1674059228664,0.69729,1521.8,1521.7,0.0092346]
[1674059229078,1.17329,1521.8,1521.7,0.0092346]
[1674059229289,7.74445,1521.8,1521.7,0.0092346]
[1674059229540,14.87451,1521.8,1521.7,0.0092346]
[1674059230370,14.87451,1521.8,1521.6,0.16136774]
[1674059230582,19.7175,1521.5,1521.0,1.0]
[1674059230817,1.537,1521.1,1521.0,1.0]
[1674059231039,1.18306,1521.1,1521.0,1.0]
[1674059231257,1.67626,1521.1,1521.0,1.0]
[1674059231462,1.18306,1521.1,1521.0,1.0]
[1674059231864,1.18306,1521.1,1520.9,0.15990556]
[1674059231865,1.67626,1521.1,1520.9,0.15990556]
[1674059232111,0.07293,1521.0,1520.9,0.15990556]
[1674059232954,0.08213677,1521.5,1520.9,0.15990556]
[1674059232955,0.01613677,1521.5,1520.9,0.15990556]
[1674059233098,0.01613677,1521.5,1520.9,7.98069633]
[1674059233310,0.009,1521.7,1521.0,7.0678]
[1674059233520,0.009,1521.7,1521.1,0.23]
[1674059233728,0.009,1521.7,1521.0,10.6327655]
[1674059233729,0.009,1521.7,1521.2,0.4931]
[1674059233983,0.009,1521.7,1521.0,0.066]
[1674059234145,1.0,1521.4,1520.9,0.5592]
[1674059234362,1.0,1521.4,1520.9,0.4932]
[1674059234589,0.3452,1521.4,1520.9,7.06785]
[1674059234797,0.3452,1521.4,1520.9,13.7130907]
[1674059235010,0.009,1521.7,1520.9,13.7130907]
[1674059235216,0.009,1521.7,1521.0,3.0]
[1674059235522,1.62693,1521.9,1521.1,7.0671]
[1674059235523,0.26293,1521.9,1521.1,7.0671]
[1674059235764,0.26293,1521.9,1521.2,6.5]
[1674059235975,1.0,1521.7,1521.3,7.06629]
[1674059236148,1.0,1521.7,1521.4,3.0]
[1674059236361,1.0,1521.7,1521.6,3.0]
[1674059236592,0.26293,1521.9,1521.6,3.0]
[1674059236895,0.26293,1521.9,1521.6,19.14374]
[1674059237109,0.26293,1521.9,1521.6,12.63772]
[1674059237722,1.151,1522.4,1521.7,3.0]
[1674059237979,1.151,1522.4,1521.8,0.4929]
[1674059238299,0.262743,1521.9,1521.7,0.066]
[1674059238641,0.262743,1521.9,1521.6,3.066]
[1674059238868,0.262743,1521.9,1521.6,3.0]
[1674059239250,0.262743,1521.9,1521.7,1.0]
[1674059239701,7.326593,1521.9,1521.7,1.0]
[1674059239930,7.392593,1521.9,1521.7,1.0]
[1674059240236,13.963543,1521.9,1521.7,1.0]
[1674059240820,0.328743,1521.9,1521.6,3.066]
[1674059241070,6.833723,1521.9,1521.6,3.0]
[1674059241308,13.470703,1521.9,1521.6,3.0]
[1674059242185,13.913603,1521.9,1521.6,3.0]
[1674059242747,13.14318,1521.7,1521.6,3.0]
[1674059242914,13.20918,1521.7,1521.6,3.0]
[1674059243125,13.70218,1521.7,1521.4,0.0041907]
[1674059243391,0.493,1521.6,1521.4,0.0041907]
[1674059243547,19.71738,1521.5,1521.4,0.0041907]
[1674059243757,20.27638,1521.5,1521.4,0.0041907]
[1674059245121,20.27638,1521.5,1521.4,7e-07]
[1674059246661,0.0019993,1521.3,1520.8,0.16298858]
[1674059246804,6.84,1521.1,1520.8,0.16298858]
[1674059247017,26.56386,1521.0,1520.8,0.16298858]
[1674059247345,26.62986,1521.0,1520.8,0.16298858]
[1674059248008,20.4833,1520.9,1520.8,0.16298858]
[1674059248221,20.0561,1520.9,1520.8,0.16298858]
[1674059248374,13.2161,1520.9,1520.8,0.16298858]
[1674059249692,26.63115,1520.9,1520.2,1.1733745]
[1674059250009,26.3047,1520.7,1520.2,1.1733745]
[1674059250227,19.79444,1520.7,1520.2,1.1733745]
[1674059250912,6.64199,1520.7,1520.2,1.1733745]
[1674059251262,0.066,1520.7,1520.3,0.4161]
[1674059251589,13.15186,1520.7,1520.2,3.1733745]
[1674059251802,20.05786,1520.7,1520.2,0.1733745]
[1674059252108,26.63379,1520.7,1519.9,1.0]
[1674059252331,26.63379,1520.7,1520.0,0.16334888]
[1674059252897,19.79379,1520.7,1520.3,1.0]
[1674059253681,1.0,1520.6,1520.3,1.0]
[1674059253892,19.73034,1520.5,1520.3,1.0]
[1674059254048,19.79634,1520.5,1520.3,1.0]
[1674059254262,0.066,1520.5,1520.4,0.40204768]
[1674059254514,1.066,1520.6,1520.4,0.40204768]
[1674059254720,1.066,1520.6,1520.2,6.57776]
[1674059254721,1.0,1520.6,1520.2,6.57776]
[1674059255055,1.0,1520.6,1520.2,0.46804768]
[1674059255210,1.0,1520.6,1520.2,6.57806]
[1674059255423,1.066,1520.7,1520.3,3.0]
[1674059255627,13.21758,1520.8,1520.3,3.0]
[1674059255880,20.05758,1520.8,1520.2,0.066]
[1674059256067,20.55088,1520.8,1520.0,0.22934888]
[1674059256253,6.84,1520.4,1520.0,0.16334888]
[1674059256466,6.906,1520.4,1520.0,0.16334888]
[1674059256672,26.57316,1520.3,1520.0,0.16334888]
[1674059256942,26.63916,1520.3,1520.2,1.0]
[1674059257158,26.63916,1520.3,1520.0,0.16334888]
[1674059257779,6.57808,1520.2,1520.0,0.16334888]
[1674059257940,13.22245,1520.2,1520.0,0.16334888]
[1674059258881,0.066,1520.2,1520.0,0.16334888]
[1674059259125,6.64367,1520.3,1520.0,0.16334888]
[1674059259508,0.066,1520.3,1520.0,0.16334888]
[1674059259764,13.15499,1520.4,1520.0,0.16334888]
[1674059259765,13.22099,1520.4,1520.0,0.11334888]
[1674059260170,20.06099,1520.4,1520.0,0.11334888]
[1674059260408,23.55793917,1520.4,1520.0,0.11334888]
[1674059260585,33.15232,1520.2,1520.0,0.11334888]
[1674059260796,13.65052,1520.1,1520.0,0.11334888]
[1674059260986,20.55652,1520.1,1520.0,0.11334888]
[1674059261407,20.06302,1520.1,1520.0,0.11334888]
[1674059261691,20.06302,1520.1,1520.0,8.88e-06]
[1674059261861,20.55652,1520.1,1519.5,1.0]
[1674059262079,33.15836,1519.9,1519.5,1.0]
[1674059262248,19.74072,1519.7,1519.5,1.0]
[1674059262459,13.22648,1519.7,1519.5,1.0]
[1674059262738,6.64624,1519.7,1519.5,1.0]
[1674059263107,0.066,1519.7,1519.5,1.0]
[1674059263316,6.64616,1519.8,1519.5,1.0]
[1674059263572,0.066,1519.8,1519.5,1.0]
[1674059263760,0.064,1519.8,1519.5,1.0]
[1674059263951,6.5794,1519.9,1519.5,1.0]
[1674059264188,6.6454,1519.9,1519.5,1.0]
[1674059264628,6.6454,1519.9,1519.5,14.57303037]
[1674059264629,0.066,1519.9,1519.5,14.57303037]
[1674059264839,0.064,1520.2,1519.6,5.0526]
[1674059265053,1.0,1520.3,1519.9,0.12097518]
[1674059265211,1.0,1520.3,1519.9,7.19385518]
[1674059265425,7.13577,1520.6,1519.9,7.25985518]
[1674059265691,6.64247,1520.6,1519.9,10.26635518]
[1674059265874,6.64047,1520.6,1519.9,6.76635518]
[1674059266206,6.64247,1520.6,1519.9,0.18697518]
[1674059266415,6.64247,1520.6,1519.9,0.12097518]
[1674059266572,1.0,1520.5,1519.9,0.12097518]
[1674059266782,1.0,1520.5,1520.0,6.98979037]
[1674059267005,1.0,1520.5,1520.1,3.0]
[1674059267222,1.0,1520.5,1520.1,16.56751037]
[1674059267431,1.0,1520.5,1520.1,16.63351037]
[1674059267639,1.0,1520.6,1520.1,16.63351037]
[1674059267855,6.70102,1521.0,1520.2,0.41085037]
[1674059268125,6.64102,1521.0,1520.2,0.41085037]
[1674059268256,6.64102,1521.0,1520.2,1.41085037]
[1674059268257,1.0,1520.8,1520.2,1.41085037]
[1674059268462,6.5751,1520.9,1520.2,15.41085037]
[1674059268675,6.6411,1520.9,1520.2,1.47685037]
[1674059268880,6.6411,1520.9,1520.2,1.0]
[1674059268881,13.15104,1520.8,1520.2,1.0]
[1674059269147,13.15104,1520.8,1520.0,1.0]
[1674059269148,6.57682,1520.5,1520.0,1.0]
[1674059269360,6.64282,1520.5,1520.0,1.0]
[1674059269573,13.21964,1520.5,1519.9,0.12097518]
[1674059269954,6.57786,1520.3,1519.9,0.12097518]
[1674059270169,6.64386,1520.3,1519.9,0.12097518]
[1674059270576,0.066,1520.3,1519.9,0.12097518]
[1674059270890,7.13702,1520.4,1519.9,0.12097518]
[1674059271152,1.0,1520.3,1519.9,0.12097518]
[1674059271679,7.3335,1520.2,1519.9,0.12097518]
[1674059271890,19.73553,1520.1,1519.9,0.12097518]
[1674059272108,7.3335,1520.0,1519.9,0.12097518]
[1674059272250,0.014,1520.0,1519.9,0.12097518]
[1674059272462,6.64418,1520.2,1519.9,0.12097518]
[1674059272789,0.066,1520.2,1519.9,0.53182555]
[1674059273000,1.0,1520.3,1519.9,14.53182555]
[1674059273228,1.0,1520.3,1519.9,14.59782555]
[1674059273442,1.0,1520.3,1520.1,13.15702]
[1674059273669,1.0,1520.4,1520.1,0.066]
[1674059273827,6.57645,1520.6,1519.9,6.76635518]
[1674059273828,6.64245,1520.6,1519.9,6.76635518]
[1674059274040,0.066,1520.6,1519.9,31.08843803]
[1674059274249,0.0748566,1520.7,1520.0,13.15778]
[1674059274459,6.5765,1520.6,1520.0,0.47685037]
[1674059274712,6.5765,1520.6,1519.9,7.76634518]
[1674059274713,1.0,1520.5,1519.9,7.76634518]
[1674059274932,7.57678,1520.5,1519.9,0.18697518]
[1674059275142,7.07061,1520.4,1519.9,0.12097518]
[1674059275361,13.71418,1520.4,1519.9,0.12097518]
[1674059275584,6.84,1520.3,1519.9,0.12097518]
[1674059275720,13.6498,1520.2,1519.9,0.12097518]
[1674059275978,19.73682,1520.0,1519.9,0.12097518]
[1674059276196,20.80282,1520.0,1519.9,0.12097518]
[1674059276349,20.29632,1520.0,1519.9,0.12097518]
[1674059276829,19.80282,1520.0,1519.9,0.12097518]
[1674059276980,19.80282,1520.0,1519.9,5.18e-06]
[1674059277191,19.80282,1520.0,1519.5,1.0]
[1674059277192,1.0,1519.9,1519.5,1.0]
[1674059277454,0.4936,1519.8,1519.5,1.0]
[1674059277645,19.74072,1519.7,1519.5,1.0]
[1674059277837,13.22648,1519.7,1519.5,1.0]
[1674059278029,13.22693,1519.7,1519.5,1.0]
[1674059278245,13.22651,1519.7,1519.5,1.0]
[1674059278455,0.066,1519.7,1519.5,1.0]
[1674059278707,0.066,1519.8,1519.5,1.0]
[1674059278927,0.066,1519.9,1519.6,14.0]
[1674059279252,0.066,1520.0,1519.7,1.0]
[1674059279460,0.066,1520.1,1519.8,14.0]
[1674059279607,6.64391,1520.3,1519.8,14.066]
[1674059279818,13.22196,1520.3,1519.8,14.066]
[1674059280077,6.5786,1520.1,1519.8,0.47685037]
[1674059280246,0.066,1520.1,1519.8,0.41085037]
[1674059280464,6.64391,1520.3,1519.8,0.41085037]
[1674059280716,6.64391,1520.3,1519.7,3.0]
[1674059280869,14.2219,1520.3,1519.7,3.0]
[1674059281081,14.2219,1520.3,1519.6,0.066]
[1674059281289,14.2219,1520.3,1519.5,22.48546037]
[1674059281290,14.2219,1520.3,1519.5,1.066]
[1674059281530,0.4935,1520.2,1519.5,1.0]
[1674059281779,6.57899,1520.0,1519.5,1.0]
[1674059281951,1.0,1519.9,1519.5,1.0]
[1674059282161,6.57989,1519.8,1519.5,1.0]
[1674059282495,13.22578,1519.8,1519.5,1.0]
[1674059283662,0.066,1519.8,1519.6,14.0]
[1674059283871,6.64486,1520.1,1519.6,0.066]
[1674059284022,13.15838,1520.0,1519.5,1.0]
[1674059284234,13.22438,1520.0,1519.5,1.0]
[1674059284714,13.71788,1520.0,1519.5,1.0]
[1674059284875,13.22438,1520.0,1519.5,1.0]
[1674059285347,13.71788,1520.0,1519.5,1.0]
[1674059285703,20.06438,1520.0,1519.5,1.0]
[1674059285966,26.64365,1520.0,1519.5,1.0]
[1674059286164,6.84,1519.8,1519.5,1.0]
[1674059286335,20.23432,1519.7,1519.5,1.0]
[1674059286541,27.14032,1519.7,1518.8,3.59761745]
[1674059286852,1.556,1519.1,1518.8,0.18002779]
[1674059287024,13.66034,1519.0,1518.7,0.16902281]
[1674059287241,6.84,1518.9,1518.7,0.16902281]
[1674059287542,27.08632,1518.8,1518.7,0.16902281]
[1674059287768,19.81842,1518.8,1518.7,0.16902281]
[1674059288094,26.65842,1518.8,1518.7,0.16902281]
[1674059288224,19.81842,1518.8,1518.7,0.16902281]
[1674059289209,26.65842,1518.8,1518.7,0.16902281]
[1674059289637,26.65842,1518.8,1518.1,1.0]
[1674059289638,28.70832,1518.8,1518.1,1.0]
[1674059289802,19.75698,1518.5,1518.1,1.0]
[1674059290025,19.75893,1518.3,1518.1,1.0]
[1674059290227,6.84,1518.2,1518.1,1.0]
[1674059290492,7.54,1518.2,1518.1,1.0]
[1674059290929,0.7,1518.2,1518.1,1.0]
[1674059291061,1.1281,1518.2,1518.1,1.0]
[1674059291541,7.9681,1518.2,1518.1,1.0]
[1674059291705,8.0341,1518.2,1518.1,1.0]
[1674059291917,8.0341,1518.2,1518.0,0.16902281]
[1674059292130,19.76154,1518.1,1518.0,0.16902281]
[1674059292356,19.82754,1518.1,1518.0,0.16902281]
[1674059292564,14.24036,1518.1,1518.0,0.16902281]
[1674059292797,21.08036,1518.1,1518.0,0.16902281]
[1674059293019,19.82754,1518.1,1518.0,0.16902281]
[1674059293163,21.36754,1518.1,1518.0,0.16902281]
[1674059293373,21.36754,1518.1,1517.8,3.73e-06]
[1674059293374,22.49838173,1518.1,1517.8,3.73e-06]
[1674059293585,7.3342,1518.0,1517.8,3.73e-06]
[1674059293797,26.60412,1517.9,1517.8,3.73e-06]
[1674059294058,28.72032,1517.9,1517.8,3.73e-06]
[1674059294277,28.72032,1517.9,1517.3,0.18926353]
[1674059294278,32.35706173,1517.9,1517.3,0.18926353]
[1674059294441,1.54,1517.6,1517.3,0.18926353]
[1674059294654,20.26364,1517.5,1517.3,0.18926353]
[1674059294864,20.32964,1517.5,1517.3,0.18926353]
[1674059295616,4.556,1517.4,1516.6,0.19318078]
[1674059295959,19.77846,1516.8,1516.6,0.19318078]
[1674059296107,8.64386,1516.7,1516.6,0.19318078]
[1674059296320,8.70986,1516.7,1516.6,0.19318078]
[1674059296797,8.70986,1516.7,1516.1,1.27042563]
[1674059297491,1.556,1516.4,1516.1,1.27042563]
[1674059297723,19.785,1516.3,1516.1,1.27042563]
[1674059297943,19.851,1516.3,1516.1,1.27042563]
[1674059298455,0.066,1516.3,1516.1,1.27042563]
[1674059298634,7.59326,1516.7,1516.4,1.83215605]
[1674059298635,1.0,1516.7,1516.4,1.83215605]
[1674059299051,6.59192,1517.1,1516.5,0.38698658]
[1674059299052,6.65792,1517.1,1516.5,0.38698658]
[1674059299304,6.65792,1517.1,1516.4,2.17545605]
[1674059299517,6.65792,1517.1,1516.5,0.38698658]
[1674059299705,6.65792,1517.1,1516.5,1.38698658]
[1674059300752,0.066,1517.1,1517.0,14.0]
[1674059300999,1.0,1517.5,1517.0,25.542]
[1674059301194,0.066,1517.7,1517.1,6.5915]
[1674059301424,0.066,1517.9,1517.1,7.0856]
[1674059301595,6.65376,1518.0,1517.1,7.06086442]
[1674059301801,0.4942,1517.9,1517.1,0.066]
[1674059302164,0.4942,1517.9,1517.0,0.40336442]
[1674059302165,6.58884,1517.8,1517.0,0.40336442]
[1674059302334,6.58884,1517.8,1517.2,1.0]
[1674059302335,0.066,1517.8,1517.2,1.0]
[1674059302657,0.066,1517.9,1517.2,8.44142442]
[1674059302876,7.64696,1518.2,1517.3,6.59045]
[1674059302877,7.65296,1518.2,1517.3,6.59045]